Cogmind - Beta 11 X2 --- EXPLORER MODE // 2021.02.26 @ 23:40:04 Player: Krytoss Result: Destroyed by PW-SZH(z) with Zionite Laser-S Performance ------------- Evolutions (3) 1500 Regions Visited (13) 2600 Robots Destroyed (220) 1100 Value Destroyed (6257) 6257 Prototype IDs (29) 580 Alien Tech Used (0) 0 Bonus (2168) 2168 TOTAL SCORE: 14205 Bonus ------- High Alert Combat Kills 218 Follower Combat Kills 1094 Entered Garrisons 200 Used RIF Installer 500 Aligned with FarCom 300 Friendly Fire -144 Cogmind --------- Core Integrity 0/700 Matter 185/300 Energy 99/100 System Corruption 4% Temperature Cool (9) Movement Core (50) Location -7/Deep Caves Parts ------- > --- POWER (1) -------- (None) > --- PROPULSION (4) --- (None) > --- UTILITY (5) ------ Enhanced Optical Array 0b10 Decoder Chip [Scout] 0b10 Decoder Chip [Skirmisher] > --- WEAPON (4) ------- (None) > --- INVENTORY (5) ---- Makeshift Leg Large Storage Unit 0b10 Decoder Chip [Looter] Makeshift System Shield Remote Datajack Peak State ------------ > --- POWER ------------ F-cell Engine > --- PROPULSION ------- Titanium Leg Titanium Leg Improved Carbon-fiber Leg Improved Titanium Leg > --- UTILITY ---------- Large Storage Unit Experimental Energy Well Enhanced Optical Array Layered Light Armor Plating Relay Coupler [Hunter] > --- WEAPON ----------- Advanced Beam Rifle Enhanced Autogun Precision Assault Rifle Heavy Battle Rifle > --- INVENTORY -------- Cooled Ion Engine Heavy Deuterium Engine Carbon-fiber Leg Titanium Leg Makeshift Leg Improved Cooling System Improved Medium Armor Plating Makeshift System Shield Relay Coupler [NC] Relay Coupler [Sentry] Heavy Particle Gun Advanced EMP Blaster Advanced EMP Blaster Remote Datajack Remote Datajack [Rating: 66] Favorites ----------- Power Light Nuclear Core Engine Light Ion Engine Power Core Light Nuclear Core Propulsion Carbon-fiber Leg Treads Light Treads Leg Carbon-fiber Leg Hover Unit Aerolev Unit Utility Large Storage Unit Device Improved Heat Sink Storage Large Storage Unit Processor Enhanced Optical Array Hackware Relay Coupler [Hunter] Protection Improved Medium Armor Plating Weapon Enhanced Autogun Energy Gun Advanced Beam Rifle Ballistic Gun Enhanced Autogun Ballistic Cannon Advanced Assault Cannon Launcher Advanced EMP Blaster Special Weapon Remote Datajack Slashing Weapon Makeshift Axe Build | -11 -10 -10 -10 -9 -8 -8 -8 -8 -7 -7 -7 -7 -7 ------- Run | Scr Mat Min Exi Min Mat Gar Mat Sto Fac Low Low Zio Dee Slots Evolved 7 | . 1 . . . 4 . . . 2 . . . . Power . | . . . . . . . . . . . . . . Propulsion 2 | . 1 . . . 1 . . . . . . . . Utility 3 | . . . . . 2 . . . 1 . . . . Weapon 2 | . . . . . 1 . . . 1 . . . . Parts Attached 160 | . 14 1 . 2 25 12 24 15 31 3 . 27 6 Power 17 | . 4 . . . 4 3 3 . 2 . . 1 . Engine 10 | . 4 . . . 2 . 1 . 2 . . 1 . Core 7 | . . . . . 2 3 2 . . . . . . Reactor . | . . . . . . . . . . . . . . Propulsion 44 | . 5 . . . 8 . 10 5 5 1 . 8 2 Treads 2 | . 2 . . . . . . . . . . . . Leg 40 | . 3 . . . 8 . 10 3 5 1 . 8 2 Wheel . | . . . . . . . . . . . . . . Hover 2 | . . . . . . . . 2 . . . . . Flight . | . . . . . . . . . . . . . . Utility 46 | . 2 1 . 2 6 5 3 3 13 1 . 6 4 Device 12 | . . . . . . 1 . 1 8 . . 2 . Storage 6 | . 1 1 . . . . 1 . . . . 2 1 Processor 4 | . . . . . 1 . . . . 1 . . 2 Hackware 3 | . . . . . . . . . 1 . . 1 1 Protection 21 | . 1 . . 2 5 4 2 2 4 . . 1 . Artifact . | . . . . . . . . . . . . . . Weapon 53 | . 3 . . . 7 4 8 7 11 1 . 12 . Energy Gun 18 | . 2 . . . 3 3 5 1 3 . . 1 . Energy Cannon . | . . . . . . . . . . . . . . Ballistic Gun 19 | . 1 . . . 2 1 2 2 4 . . 7 . Ballistic Cannon 6 | . . . . . 1 . 1 2 2 . . . . Launcher 5 | . . . . . 1 . . 1 . 1 . 2 . Special Weapon 3 | . . . . . . . . . 2 . . 1 . Impact Weapon . | . . . . . . . . . . . . . . Slashing Weapon 2 | . . . . . . . . 1 . . . 1 . Piercing Weapon . | . . . . . . . . . . . . . . Special Melee Weapon . | . . . . . . . . . . . . . . Unidentified Prototypes 9 | . . . . . 3 . . 2 2 . . 2 . Parts Lost 16 | . . . . . . . . . 1 . . 5 10 Power . | . . . . . . . . . . . . . . Propulsion 5 | . . . . . . . . . . . . 1 4 Utility 3 | . . . . . . . . . . . . . 3 Weapon 8 | . . . . . . . . . 1 . . 4 3 Highest Loss Streak 10 | . . . . . . . . . 1 . . 2 10 Average Slot Usage (%) 99 | . 99 100 100 100 99 100 99 99 98 100 100 99 84 Engine 5 | . 12 12 12 12 2 . . 8 6 7 7 7 6 Core 2 | . . . . . 5 8 7 . . . . . . Leg 31 | . 34 37 37 37 33 33 33 32 27 28 28 27 24 Device 7 | . . . . . . 3 8 15 14 7 7 6 4 Storage 8 | . 12 12 12 12 8 8 8 8 7 7 7 7 7 Processor 1 | . . . . . 3 . . . . 6 7 7 8 Hackware 2 | . . . . . . . . . 4 7 7 7 5 Protection 12 | . 11 12 12 12 21 20 15 8 8 7 7 7 4 Energy Gun 11 | . 11 12 12 12 10 16 14 9 13 9 7 4 . Ballistic Gun 10 | . 12 12 12 12 4 8 9 7 8 14 14 17 16 Ballistic Cannon 1 | . . . . . 3 . . 5 2 . . . . Launcher 1 | . . . . . 5 . . . . 4 7 3 4 Naked Turns . | . . . . . . . . . . . . . . Heaviest Build 58 | 18 30 30 30 32 47 53 51 55 58 52 52 58 57 Greatest Support 75 | 20 30 30 30 30 58 58 62 62 67 67 67 75 75 Greatest Overweight (x) 6 | . . . . 1 1 . . 6 . . . . 1 Average Overweight (x) . | . . . . . . . . . . . . . . Largest Inventory Capacity 15 | 10 15 15 15 15 15 15 15 15 15 15 15 15 15 Average Capacity 14 | 10 13 15 15 15 15 15 15 15 15 15 15 15 14 Most Carried 15 | 7 15 15 15 15 15 15 15 15 15 15 15 15 15 Average Carried 14 | 7 12 15 14 14 14 14 14 14 14 14 15 14 13 Final Capacity 15 | 10 15 15 15 15 15 15 15 15 15 15 15 15 5 Final Carried 15 | 7 15 15 15 15 15 15 15 14 15 15 15 15 5 Class Distribution -------------------- 25% | Hacker-Mutant 22% | Hacker-Tank 19% | Bothacker-Skirmisher 10% | Bothacker-Tank 7% | Scavenger-Mutant 6% | Scavenger-Tank 4% | Bothacker-Mutant Dominant Class ---------------- Hacker-Mutant | -10/Materials Hacker-Mutant | -10/Mines Hacker-Mutant | -10/Exiles Hacker-Mutant | -9/Mines Hacker-Mutant | -8/Materials Hacker-Tank | -8/Garrison Hacker-Tank | -8/Materials Bothacker-Skirmisher | -8/Storage Bothacker-Skirmisher | -7/Factory Bothacker-Tank | -7/Lower Caves Bothacker-Tank | -7/Lower Caves Hacker-Tank | -7/Zion Scavenger-Tank | -7/Deep Caves Resources | -11 -10 -10 -10 -9 -8 -8 -8 -8 -7 -7 -7 -7 -7 ----------- Run | Scr Mat Min Exi Min Mat Gar Mat Sto Fac Low Low Zio Dee Matter Collected 4243 | 200 178 46 . 23 303 216 381 431 671 240 36 1518 . Remotely . | . . . . . . . . . . . . . . Salvage Created 8110 | . 235 102 . . 637 509 1242 1100 1181 744 120 2240 . Parts 479 | . 21 13 . . 29 28 63 44 69 31 1 180 . Haulers Intercepted 9 | . 1 . . . 3 . 3 1 1 . . . . Recyclers Shooed 4 | . 1 . . . . . . 1 2 . . . . Parts Field Recycled . | . . . . . . . . . . . . . . Retrieved Matter . | . . . . . . . . . . . . . . Parts Self-Destructed . | . . . . . . . . . . . . . . Prevented . | . . . . . . . . . . . . . . Kills | -11 -10 -10 -10 -9 -8 -8 -8 -8 -7 -7 -7 -7 -7 ------- Run | Scr Mat Min Exi Min Mat Gar Mat Sto Fac Low Low Zio Dee Combat Hostiles Destroyed 106 | . 6 2 . . 7 14 19 16 18 14 2 8 . Guns 82 | . 6 2 . . 4 12 17 10 16 8 . 7 . Cannons 7 | . . . . . 3 . . 2 2 . . . . AOE 16 | . . . . . . 2 2 4 . 5 2 1 . Classes Destroyed 19 | . 4 . . . 2 . 3 3 2 1 . 4 . Worker 4 | . . . . . . . 1 1 2 . . . . Builder 1 | . . . . . . . . 1 . . . . . Tunneler 5 | . 1 4 . . . . . . . . . . . Hauler 9 | . 1 . . . 3 . 3 1 1 . . . . Recycler 10 | . . . . . 2 . 2 3 3 . . . . Mechanic 1 | . . . . . . . . 1 . . . . . Operator 4 | . . . . . . . 1 . 2 1 . . . Watcher 1 | . . . . . . . . . 1 . . . . Swarmer 20 | . 4 2 . . . 5 4 . 2 3 . . . Grunt 47 | . 2 . . . 3 7 5 10 9 9 2 . . Brawler 1 | . . . . . . . . . . 1 . . . Duelist 4 | . . . . . . . 2 . 2 . . . . Sentry 21 | . . . . . 4 2 8 4 2 1 . . . Demolisher 2 | . . . . . . . . 2 . . . . . Programmer 3 | . . . . . . . . . 3 . . . . Zionite 79 | . . . . . . . . . . . . 79 . Tinkerer 1 | . . . . . . . . . . . . 1 . Marauder 1 | . . . . . . . . . . . . 1 . Mutant 5 | . . . . . . . . . . . . 5 . Best Kill Streak 12 | . 2 2 . . 2 4 3 6 6 3 2 12 . Combat Bots Only 5 | . 2 2 . . 1 4 3 4 5 3 2 2 . Max Kills in Single Turn 3 | . 2 1 . . 1 2 2 3 2 3 2 3 . Gunslinging 1 | . 1 . . . . . . . . . . 1 . Exploded 3 | . . . . . . 1 1 2 . 3 2 1 . Melee . | . . . . . . . . . . . . . . Uniques/NPCs Destroyed 2 | . . . . . . . . . . . . 2 . Imprinter (-7/Zion) ME-RLN (-7/Zion) Combat | -11 -10 -10 -10 -9 -8 -8 -8 -8 -7 -7 -7 -7 -7 -------- Run | Scr Mat Min Exi Min Mat Gar Mat Sto Fac Low Low Zio Dee Damage Taken 5837 | . 119 20 . . 242 475 341 695 722 181 22 1621 1399 Core 823 | . 19 . . . 9 38 30 19 84 11 . 148 465 Absorbed by Shields 6 | . . . . . . 6 . . . . . . . Core Remaining (%) 91 | 100 . . . 92 . . . 82 . . . . . Volleys Fired 393 | . 21 12 . 1 28 35 46 45 50 17 3 133 2 Largest 4 | . 2 2 . 2 3 3 3 3 4 4 4 4 3 Hottest 195 | . 70 70 . 70 130 131 147 147 195 150 150 150 76 Shots Fired 1155 | . 35 24 . 2 47 82 124 122 163 63 12 475 6 Gun 1052 | . 35 24 . 2 39 82 124 97 120 51 9 463 6 Cannon 69 | . . . . . 8 . . 21 40 . . . . Launcher 29 | . . . . . . . . 4 . 12 3 10 . Special 5 | . . . . . . . . . 3 . . 2 . Kinetic 683 | . 14 12 . 1 15 32 48 66 88 34 6 361 6 Thermal 377 | . 21 12 . 1 17 20 60 52 72 17 3 102 . Explosive . | . . . . . . . . . . . . . . Electromagnetic 90 | . . . . . 15 30 16 4 . 12 3 10 . Robot Hit Streak 40 | . 12 12 . 5 22 26 19 25 40 11 21 34 2 Robot Miss Streak 4 | . 2 1 . 1 1 1 1 1 2 1 . 3 4 Penetration Max 1 | . . . . . . . . . 1 . . . . Secondary Targets 23 | . 1 . . . . 2 1 . . . . 19 . Max Gunslinging Chain 2 | . 1 . . . . 1 1 . . . . 2 . Shots Hit Robots 831 | . 23 17 . 1 40 49 91 94 113 41 12 346 4 Core Hits 361 | . 14 6 . . 25 27 42 46 49 26 5 118 3 Critical Hits 11 | . . . . . . . . 5 2 1 . 3 . Critical Kills 3 | . . . . . . . . 2 . 1 . . . Critical Parts Destroyed 8 | . . . . . . . . 3 2 . . 3 . Melee Attacks 5 | . . . . . . . . 2 . . . 3 . Impact . | . . . . . . . . . . . . . . Slashing 5 | . . . . . . . . 2 . . . 3 . Piercing . | . . . . . . . . . . . . . . Sneak Attacks . | . . . . . . . . . . . . . . Combat Hostiles . | . . . . . . . . . . . . . . Follow-up Attacks . | . . . . . . . . . . . . . . Damage Inflicted 17649 | . 294 167 . 23 746 850 1892 3067 2474 1283 434 6326 93 Guns 13256 | . 288 153 . 13 562 758 1634 1444 1862 632 166 5651 93 Cannons 949 | . . . . . 149 . . 352 448 . . . . Explosions 3084 | . . . . . 35 92 203 1257 . 651 268 578 . Melee 97 | . . . . . . . . . . . . 97 . Ramming 263 | . 6 14 . 10 . . 55 14 164 . . . . Kinetic 7690 | . 139 54 . . 217 219 374 916 1114 352 106 4106 93 Thermal 6659 | . 149 99 . 13 247 263 1183 1349 1196 372 60 1728 . Explosive . | . . . . . . . . . . . . . . Electromagnetic 2940 | . . . . . 282 368 280 788 . 559 268 395 . Impact . | . . . . . . . . . . . . . . Slashing 97 | . . . . . . . . . . . . 97 . Piercing . | . . . . . . . . . . . . . . Highest Corruption 4 | . . . . . . . . . 1 1 1 4 4 Average Corruption 1 | . . . . . . . . . 1 1 1 2 4 Corruption Purged . | . . . . . . . . . . . . . . Effects 34 | . . . . . . . . . 4 2 1 18 9 Message Errors 11 | . . . . . . . . . 3 2 . 4 2 Matter Fused 7 | . . . . . . . . . . . . 5 2 Heat Flow Errors 4 | . . . . . . . . . . . . 3 1 Energy Discharges 8 | . . . . . . . . . 1 . 1 4 2 Parts Rejected 1 | . . . . . . . . . . . . . 1 Data Loss (minor) 3 | . . . . . . . . . . . . 2 1 Overload Shots . | . . . . . . . . . . . . . . Overflow Damage 164 | . . . . . . . 13 95 32 . . 24 . Projectiles 16 | . . . . . . . . 1 15 . . . . Explosions 131 | . . . . . . . 13 94 . . . 24 . Melee 17 | . . . . . . . . . 17 . . . . Knockbacks 13 | . . . . . . . 1 3 9 . . . . Impact 1 | . . . . . . . 1 . . . . . . Kinetic 10 | . . . . . . . . 3 7 . . . . Secondary 2 | . . . . . . . . . 2 . . . . Self-Inflicted Damage 102 | . . . . . 12 45 24 . . 14 . 7 . Shots 6 | . . . . . 1 2 1 . . 1 . 1 . Rammed . | . . . . . . . . . . . . . . Targets Rammed 24 | . 1 1 . 1 . . 6 1 14 . . . . Kicked 24 | . 1 1 . 1 . . 6 1 14 . . . . Crushed . | . . . . . . . . . . . . . . Highest Temperature 562 | . 112 58 . 18 189 234 255 286 562 45 15 249 85 Average Temperature 70 | . 39 23 . 10 46 74 68 95 158 10 8 55 28 Received Heat Transfer 2307 | . 33 . . . 162 309 171 306 363 135 18 198 612 Effects 4 | . . . . . . . . . 4 . . . . Shutdowns 2 | . . . . . . . . . 2 . . . . Matter Decay 1 | . . . . . . . . . 1 . . . . Short Circuit 1 | . . . . . . . . . 1 . . . . Siege Activations . | . . . . . . . . . . . . . . Robots Corrupted 1 | . . . . . . . . . . 1 . . . Combat Hostiles 1 | . . . . . . . . . . 1 . . . Parts Fried 8 | . . . . . . 1 1 . . 4 1 1 . Impact Corruptions 3 | . . . . . . . . . 3 . . . . Robots Melted . | . . . . . . . . . . . . . . Combat Hostiles . | . . . . . . . . . . . . . . Parts Melted 21 | . . . . . 1 1 3 3 3 . . 10 . Heat Transferred 11819 | . 444 296 . 37 592 544 2113 2126 2183 568 111 2805 . Parts Sabotaged . | . . . . . . . . . . . . . . Parts Stolen . | . . . . . . . . . . . . . . Parts Stripped . | . . . . . . . . . . . . . . Power Chain Reactions 17 | . . . . . 1 2 3 2 . 4 . 5 . Missiles Intercepted . | . . . . . . . . . . . . . . Alert | -11 -10 -10 -10 -9 -8 -8 -8 -8 -7 -7 -7 -7 -7 ------- Run | Scr Mat Min Exi Min Mat Gar Mat Sto Fac Low Low Zio Dee Peak Influence 1189 | . 108 74 . . 201 1189 627 296 223 . . . . Initial 424 | . . 4 . . . 71 424 1 97 . . . . Average 180 | . 33 31 . . 60 696 181 83 62 . . . . Maximum Alert Level 4 | . . . . . 1 4 2 1 1 . . . . Low Security (%) 77 | 100 100 100 . 100 99 8 72 90 93 . . . . Level 1 7 | . . . . . . 24 5 9 6 . . . . Level 2 7 | . . . . . . 17 21 . . . . . . Level 3 6 | . . . . . . 40 . . . . . . . Level 4 1 | . . . . . . 8 . . . . . . . Level 5 . | . . . . . . . . . . . . . . High Security . | . . . . . . . . . . . . . . Max Security . | . . . . . . . . . . . . . . Squads Dispatched 14 | . 1 . . . . . 2 4 7 . . . . Investigation 2 | . 1 . . . . . . . 1 . . . . Extermination 4 | . . . . . . . . . 4 . . . . Reinforcement 6 | . . . . . . . 2 2 2 . . . . Assault 2 | . . . . . . . . 2 . . . . . Garrison . | . . . . . . . . . . . . . . Intercept . | . . . . . . . . . . . . . . Construction Impeded 2 | . . . . . . . . 1 1 . . . . Haulers Reinforced 1 | . . . . . . . . . 1 . . . . Stealth | -11 -10 -10 -10 -9 -8 -8 -8 -8 -7 -7 -7 -7 -7 --------- Run | Scr Mat Min Exi Min Mat Gar Mat Sto Fac Low Low Zio Dee Distress Signals 12 | . . . . . 1 . 4 6 1 . . . . Communications Jammed . | . . . . . . . . . . . . . . Distress Signals . | . . . . . . . . . . . . . . Times Spotted 330 | . 13 2 . . 25 37 49 42 37 23 3 93 6 Peak Tracking Total 12 | . 5 2 . . 3 6 4 12 6 9 3 8 6 Tactical Retreats 25 | . . . . . 1 5 4 3 3 5 . 4 . Traps | -11 -10 -10 -10 -9 -8 -8 -8 -8 -7 -7 -7 -7 -7 ------- Run | Scr Mat Min Exi Min Mat Gar Mat Sto Fac Low Low Zio Dee Traps Triggered 15 | . 3 . . . . 6 2 1 3 . . . . Indirectly . | . . . . . . . . . . . . . . Trap Hack Attempts . | . . . . . . . . . . . . . . Triggered . | . . . . . . . . . . . . . . Disarmed 2 | . . . . . . . 2 . . . . . . Reprogrammed . | . . . . . . . . . . . . . . Reused . | . . . . . . . . . . . . . . Traps Extracted . | . . . . . . . . . . . . . . Installed . | . . . . . . . . . . . . . . Triggered . | . . . . . . . . . . . . . . Exploded 1 | . . . . . 1 . . . . . . . . Machines | -11 -10 -10 -10 -9 -8 -8 -8 -8 -7 -7 -7 -7 -7 ---------- Run | Scr Mat Min Exi Min Mat Gar Mat Sto Fac Low Low Zio Dee Machines Disabled 11 | . . . . . . 4 1 3 2 . . 1 . Max in Single Turn 1 | . . . . . . 1 1 1 1 . . 1 . Garrison Access 1 | . . . . . . . . . 1 . . . . Garrison Relay 4 | . . . . . . 4 . . . . . . . Machines Sabotaged . | . . . . . . . . . . . . . . Garrisons Compromised . | . . . . . . . . . . . . . . Overloaded Fab Kills . | . . . . . . . . . . . . . . Fab Network Shutdowns . | . . . . . . . . . . . . . . Hacking | -11 -10 -10 -10 -9 -8 -8 -8 -8 -7 -7 -7 -7 -7 --------- Run | Scr Mat Min Exi Min Mat Gar Mat Sto Fac Low Low Zio Dee Machines Accessed 57 | . 10 . 4 . 5 . 12 13 11 2 . . . Terminals 37 | . 8 . . . 3 . 9 11 6 . . . . Fabricators . | . . . . . . . . . . . . . . Repair Stations 8 | . 1 . . . 1 . 1 2 3 . . . . Recycling Units 1 | . 1 . . . . . . . . . . . . Scanalyzers 2 | . . . . . . . 2 . . . . . . Garrison Access 3 | . . . . . 1 . . . 2 . . . . Total Hacks 190 | . 31 . 27 . 16 . 43 39 32 2 . . . Successful 152 | . 23 . 27 . 13 . 33 27 27 2 . . . Failed 38 | . 8 . . . 3 . 10 12 5 . . . . Catastrophic . | . . . . . . . . . . . . . . Database Lockouts . | . . . . . . . . . . . . . . Manual 65 | . 19 . 1 . 4 . 12 9 11 . . 9 . Terminals 119 | . 26 . . . 12 . 32 30 19 . . . . Fabricators . | . . . . . . . . . . . . . . Repair Stations 22 | . 2 . . . 2 . 2 9 7 . . . . Recycling Units 3 | . 3 . . . . . . . . . . . . Scanalyzers 9 | . . . . . . . 9 . . . . . . Garrison Access 8 | . . . . . 2 . . . 6 . . . . Terminal Hacks 98 | . 9 . 27 . 8 . 19 22 11 2 . . . Record 31 | . . . 27 . 1 . 1 1 . 1 . . . Part Schematic 2 | . . . . . . . . 2 . . . . . Robot Analysis 3 | . 2 . . . . . . . 1 . . . . Prototype ID Bank 13 | . 3 . . . 2 . 5 2 1 . . . . Open Door 4 | . . . . . . . . 3 . 1 . . . Level Access Points 1 | . . . . . . . . 1 . . . . . Branch Access Points 2 | . . . . . . . 1 1 . . . . . Emergency Access Points 1 | . . . . . . . . 1 . . . . . Alert Level 6 | . 1 . . . 2 . 3 . . . . . . Unreport Threat 3 | . . . . . . . 1 2 . . . . . Locate Traps 9 | . 1 . . . 2 . 3 2 1 . . . . Disarm Traps 1 | . . . . . . . 1 . . . . . . Dispatch Records 3 | . . . . . 1 . . 1 1 . . . . Security Status 1 | . . . . . . . 1 . . . . . . Surveillance Status 1 | . . . . . . . 1 . . . . . . Patrol Status 1 | . . . . . . . . . 1 . . . . Transport Status 1 | . . . . . . . . . 1 . . . . Investigation Status 2 | . . . . . . . . 1 1 . . . . Extermination Status 1 | . . . . . . . . . 1 . . . . Assault Status 1 | . . . . . . . . 1 . . . . . Recall Investigation 2 | . 1 . . . . . . . 1 . . . . Hauler Manifests 3 | . 1 . . . . . 1 1 . . . . . Registered Components 2 | . . . . . . . 1 1 . . . . . Zone Layout 4 | . . . . . . . . 2 2 . . . . Fabricator Hacks . | . . . . . . . . . . . . . . Repair Station Hacks 17 | . 2 . . . 2 . 2 5 6 . . . . Scan Component 9 | . 1 . . . 1 . 1 3 3 . . . . Repair 8 | . 1 . . . 1 . 1 2 3 . . . . Recycling Unit Hacks 3 | . 3 . . . . . . . . . . . . Report Inventory 2 | . 2 . . . . . . . . . . . . Retrieve Components 1 | . 1 . . . . . . . . . . . . Scanalyzer 9 | . . . . . . . 9 . . . . . . Insert Component 4 | . . . . . . . 4 . . . . . . Analyze 5 | . . . . . . . 5 . . . . . . Garrison Access Hacks 4 | . . . . . 2 . . . 2 . . . . Unlock Access 1 | . . . . . 1 . . . . . . . . Seal Access 1 | . . . . . . . . . 1 . . . . Coupler Status 2 | . . . . . 1 . . . 1 . . . . Unauthorized Hacks 21 | . 9 . . . 1 . 3 . 8 . . . . Terminals 17 | . 9 . . . 1 . 3 . 4 . . . . Track 3 | . 2 . . . . . . . 1 . . . . Assimilate 3 | . 1 . . . . . 1 . 1 . . . . Botnet 11 | . 6 . . . 1 . 2 . 2 . . . . Fabricators . | . . . . . . . . . . . . . . Repair Stations . | . . . . . . . . . . . . . . Recycling Units . | . . . . . . . . . . . . . . Scanalyzers . | . . . . . . . . . . . . . . Garrison Access 4 | . . . . . . . . . 4 . . . . Reprogram 2 | . . . . . . . . . 2 . . . . Watchers 2 | . . . . . . . . . 2 . . . . Data Cores Recovered 2 | . . . . . . . . . 2 . . . . Used 1 | . . . . . . . . . 1 . . . . Hacking Detections 43 | . 10 . . . 4 . 11 10 8 . . . . Full Trace Events 2 | . 1 . . . . . . 1 . . . . . Feedback Events . | . . . . . . . . . . . . . . Feedback Blocked . | . . . . . . . . . . . . . . Robot Schematics Acquired . | . . . . . . . . . . . . . . Robots Built . | . . . . . . . . . . . . . . Matter . | . . . . . . . . . . . . . . Time . | . . . . . . . . . . . . . . Total Robot Build Rating . | . . . . . . . . . . . . . . Part Schematics Acquired 5 | . . . . . . . 4 1 . . . . . Parts Built . | . . . . . . . . . . . . . . Matter . | . . . . . . . . . . . . . . Time . | . . . . . . . . . . . . . . Total Part Build Rating . | . . . . . . . . . . . . . . Parts Repaired 8 | . 1 . . . 1 . 1 2 3 . . . . Time 300 | . 26 . . . 13 . 44 98 119 . . . . Parts Recycled . | . . . . . . . . . . . . . . Recycled Matter . | . . . . . . . . . . . . . . Retrieved Matter . | . . . . . . . . . . . . . . Retrieved Components 9 | . 9 . . . . . . . . . . . . Parts Scanalyzed 4 | . . . . . . . 4 . . . . . . Part Schematics Acquired 4 | . . . . . . . 4 . . . . . . Parts Damaged 2 | . . . . . . . 2 . . . . . . Bothacking | -11 -10 -10 -10 -9 -8 -8 -8 -8 -7 -7 -7 -7 -7 ------------ Run | Scr Mat Min Exi Min Mat Gar Mat Sto Fac Low Low Zio Dee Used RIF Installer 1 | . . . . . . 1 . . . . . . . Robots Hacked 2 | . . . . . . . . . 1 . . 1 . Non-combat . | . . . . . . . . . . . . . . Combat 2 | . . . . . . . . . 1 . . 1 . Robot Hacks Applied 2 | . . . . . . . . . 1 . . 1 . parse_system 1 | . . . . . . . . . . . . 1 . formatsys_high 1 | . . . . . . . . . 1 . . . . Relay Couplers Released 18 | . . . . . . 18 . . . . . . . Machine Destruction 18 | . . . . . . 18 . . . . . . . Attached 3 | . . . . . . . . . 1 . . 1 1 Robots Rewired 2 | . . . . . . . . . . 2 . . . Allies Hacked . | . . . . . . . . . . . . . . Hacks Repelled . | . . . . . . . . . . . . . . Allies | -11 -10 -10 -10 -9 -8 -8 -8 -8 -7 -7 -7 -7 -7 -------- Run | Scr Mat Min Exi Min Mat Gar Mat Sto Fac Low Low Zio Dee Total Allies 16 | . . . . . . . . 12 2 2 . . . Largest Group 11 | . . . . . . . . 11 1 2 2 2 . Highest-Rated Group 219 | . . . . . . . . 219 26 32 32 32 . Highest-Rated Ally 31 | . . . . . . . . 31 26 26 16 16 . Total Orders 6 | . . . . . 1 . . 5 . . . . . STAY 1 | . . . . . 1 . . . . . . . . FOLLOW 1 | . . . . . . . . 1 . . . . . EXPLORE 4 | . . . . . . . . 4 . . . . . Ally Attacks 147 | . . . . . 18 38 12 45 . . 3 31 . Total Damage 4463 | . . . . . 797 2029 608 659 . . 35 335 . Kills 38 | . . . . . 8 17 4 4 . . 1 4 . Allies Corrupted . | . . . . . . . . . . . . . . Allies Melted . | . . . . . . . . . . . . . . Turrets Deployed 3 | . . . . . 1 1 1 . . . . . . Intel | -11 -10 -10 -10 -9 -8 -8 -8 -8 -7 -7 -7 -7 -7 ------- Run | Scr Mat Min Exi Min Mat Gar Mat Sto Fac Low Low Zio Dee Robot Analysis Total 3 | . 2 . . . . . . . 1 . . . . Derelict Logs Recovered 5 | . . . . 1 . . . . . 1 2 1 . Drone Launches 10 | . . . . . . . . 10 . . . . . Drone Recoveries 4 | . . . . . . . . 4 . . . . . Exploration | -11 -10 -10 -10 -9 -8 -8 -8 -8 -7 -7 -7 -7 -7 ------------- Run | Scr Mat Min Exi Min Mat Gar Mat Sto Fac Low Low Zio Dee Turns Passed 17195 | 5 1296 370 934 364 1460 1907 2949 1410 3111 924 543 1554 368 Spaces Moved 10900 | 5 854 273 773 289 915 1324 1726 645 1852 658 424 844 318 Core 70 | . . . . . . . . . . . . . 70 Treads . | . . . . . . . . . . . . . . Legs 10829 | 5 854 273 773 289 915 1324 1726 644 1852 658 424 844 248 Wheels . | . . . . . . . . . . . . . . Hover 1 | . . . . . . . . 1 . . . . . Flight . | . . . . . . . . . . . . . . Fastest Speed 50 | 120 120 120 120 120 120 122 122 122 122 125 125 125 50 Average Speed 122 | 120 120 120 120 120 125 122 122 122 123 125 125 126 110 Slowest Speed 440 | 120 120 120 120 200 200 122 122 440 125 125 125 132 203 Overloaded Moves . | . . . . . . . . . . . . . . Propulsion Burnouts . | . . . . . . . . . . . . . . Robots Hopped 1 | . . . . . . 1 . . . . . . . Cave-ins Triggered . | . . . . . . . . . . . . . . Exploration Rate (%) 64 | 2 92 60 92 41 41 85 99 90 38 69 58 78 62 Regions Visited 13 Branch Regions 8 Pre-discovered Areas 2 | . . 1 1 . . . . . . . . . . Known Exits Taken 12 | 1 1 1 1 1 1 . 1 1 1 1 1 1 . Unknown Exits Taken . | . . . . . . . . . . . . . . Scrap Searched 5 | . . . . 1 . . . . . 2 1 1 . Spaces Dug . | . . . . . . . . . . . . . . Terrain Destroyed 73 | . . . . . 2 11 10 14 9 12 . 15 . Melee . | . . . . . . . . . . . . . . Projectile 13 | . . . . . . . . 4 9 . . . . AOE 60 | . . . . . 2 11 10 10 . 12 . 15 . Terrain Rammed . | . . . . . . . . . . . . . . Walls Destroyed . | . . . . . . . . . . . . . . Machines Disabled . | . . . . . . . . . . . . . . Actions | -11 -10 -10 -10 -9 -8 -8 -8 -8 -7 -7 -7 -7 -7 --------- Run | Scr Mat Min Exi Min Mat Gar Mat Sto Fac Low Low Zio Dee Total 14091 | 4 1097 292 782 303 1194 1579 2512 1186 2590 727 430 1062 333 Wait 2286 | . 165 2 . 7 182 140 652 461 612 32 4 29 . Move 10884 | 4 853 272 772 288 914 1320 1725 644 1851 657 423 843 318 Hop 1 | . . . . . . 1 . . . . . . . Pick Up 111 | . 23 2 5 1 19 16 21 4 8 3 . 9 . Fast Attach 34 | . 4 . . 1 4 . 5 7 7 . . 6 . Attach 19 | . 1 . . . 5 . . 1 2 . . 4 6 Detach 5 | . . . . . 1 . . . . . . . 4 Swap 107 | . 9 1 . 1 16 12 19 7 22 3 . 17 . Drop 178 | . 20 2 5 3 25 25 38 11 24 4 . 18 3 Fire 393 | . 21 12 . 1 28 35 46 45 50 17 3 133 2 Melee 5 | . . . . . . . . 2 . . . 3 . Ram . | . . . . . . . . . . . . . . Kick 24 | . 1 1 . 1 . . 6 1 14 . . . . Crush . | . . . . . . . . . . . . . . Escape Stasis 30 | . . . . . . 30 . . . . . . . Rewire 11 | . . . . . . . . . . 11 . . . Trap . | . . . . . . . . . . . . . . Miscellaneous 3 | . . . . . . . . 3 . . . . . Route ------- -11/Scrapyard -10/Materials (discovered 4 exits: *Mat x2 / *Min x2) -10/Mines (discovered 2 exits: *Mat / *Exi) -10/Exiles -9/Mines -8/Materials (discovered 3 exits: Fac / *Sto / Gar) -8/Garrison (discovered 3 exits: *Mat x3) -8/Materials (discovered 5 exits: *Fac x3 / *Sto x2) -8/Storage (discovered 2 exits: *Fac / Rec) -7/Factory (discovered 2 exits: *Fac / *Low) -7/Lower Caves -7/Lower Caves -7/Zion (discovered 2 exits: *Dee / *Pro) -7/Deep Caves History --------- Turn | Location | Event 1 | -11/Scrapyard | Identified exit to Materials 1 | -11/Scrapyard | Discovered exit to Materials (range 3) 6 | -11/Scrapyard | Entered Materials 6 | -10/Materials | Evolved 1 slot: Propulsion x1 302 | -10/Materials | Build established: Hacker-Mutant 511 | -10/Materials | Repaired Med. Laser 529 | -10/Materials | Identified exit to Mines 529 | -10/Materials | Discovered exit to Mines (range 9) 709 | -10/Materials | Identified exit to Materials 709 | -10/Materials | Discovered exit to Materials (range 9) 1167 | -10/Materials | Discovered exit to Materials (range 8) 1206 | -10/Materials | Discovered exit to Mines (range 5) 1302 | -10/Materials | Entered Mines 1464 | -10/Mines | Learned location of Storage (-8) 1554 | -10/Mines | Discovered exit to Materials (range 6) 1599 | -10/Mines | Received a Rocket Launcher from a helpful Derelict 1667 | -10/Mines | Deemed a non-threat by the Exiles lab entrance 1667 | -10/Mines | Identified exit to Exiles 1667 | -10/Mines | Discovered exit to Exiles (range 5) 1672 | -10/Mines | Entered Exiles 1705 | -10/Exiles | Met 8R-AWN 1723 | -10/Exiles | Met EX-HEX 1793 | -10/Exiles | Met EX-DEC 1811 | -10/Exiles | Visited The Gauntlet 2019 | -10/Exiles | Learned location of Zion (-7) 2058 | -10/Exiles | Met EX-BIN 2273 | -10/Exiles | Identified exit to Mines 2273 | -10/Exiles | Discovered exit to Mines (range 10) 2448 | -10/Exiles | Aligned with FarCom system 2449 | -10/Exiles | Given EX-Vault access code 2477 | -10/Exiles | Opened EX-Vault 2484 | -10/Exiles | Found Deploy-a-Sentry 2486 | -10/Exiles | Found Deploy-a-Sentry 2489 | -10/Exiles | Found Deploy-a-Sentry 2516 | -10/Exiles | Warned to stay clear of 0b10 Research branches 2606 | -10/Exiles | Left Exiles lab with Deploy-a-Sentry 2606 | -10/Exiles | Entered Mines 2630 | -9/Mines | Identified exit to Materials 2630 | -9/Mines | Discovered exit to Materials (range 11) 2641 | -9/Mines | Learned location of 1 exit from Materials 2900 | -9/Mines | Assembled infested the area 2970 | -9/Mines | Entered Materials 2970 | -8/Materials | Evolved 4 slots: Propulsion x1, Utility x2, Weapon x1 2971 | -8/Materials | Identified exit to Factory 3079 | -8/Materials | DAS Turret deployed 3807 | -8/Materials | Repaired Lgt. Armor Plating 4127 | -8/Materials | Identified exit to Storage 4127 | -8/Materials | Discovered exit to Storage (range 11) 4429 | -8/Materials | Identified exit to Garrison 4430 | -8/Materials | Entered Garrison 4502 | -8/Garrison | Build established: Hacker-Tank 4578 | -8/Garrison | DAS Turret deployed 4648 | -8/Garrison | Triggered checkpoint 4688 | -8/Garrison | Triggered checkpoint 4785 | -8/Garrison | Identified exit to Materials 4785 | -8/Garrison | Discovered exit to Materials (range 8) 4802 | -8/Garrison | Installed Relay Interface Framework 4934 | -8/Garrison | Discovered exit to Materials (range 8) 5016 | -8/Garrison | Triggered checkpoint 5020 | -8/Garrison | Build established: Scavenger-Mutant 5159 | -8/Garrison | Garrison Relay disabled 5280 | -8/Garrison | Triggered checkpoint 5426 | -8/Garrison | Triggered checkpoint 5465 | -8/Garrison | Triggered checkpoint 5604 | -8/Garrison | Discovered exit to Materials (range 14) 5718 | -8/Garrison | Triggered checkpoint 5793 | -8/Garrison | Garrison Relay disabled 5957 | -8/Garrison | Build established: Hacker-Tank 6008 | -8/Garrison | Garrison Relay disabled 6122 | -8/Garrison | Triggered checkpoint 6216 | -8/Garrison | Garrison Relay disabled 6337 | -8/Garrison | Entered Materials 6639 | -8/Materials | DAS Turret deployed 8081 | -8/Materials | Build established: Hacker-Mutant 8368 | -8/Materials | Discovered exit to Factory (range 16) 8565 | -8/Materials | Repaired Imp. Medium Armor Plating 8624 | -8/Materials | Discovered exit to Factory (range 16) 8962 | -8/Materials | Build established: Hacker-Tank 9196 | -8/Materials | Discovered exit to Factory (range 12) 9286 | -8/Materials | Entered Storage 9613 | -8/Storage | Build established: Bothacker-Skirmisher 9915 | -8/Storage | Found Prototype Protection 9915 | -8/Storage | Identified Lgt. Regenerative Plating 9935 | -8/Storage | Identified exit to Recycling 10174 | -8/Storage | Assisted by bots powering up and referring to "LRC-V3" 10399 | -8/Storage | Repaired Adv. Beam Rifle 10438 | -8/Storage | Repaired Carbon-fiber Leg 10503 | -8/Storage | Met a pair of Derelict thieves 10696 | -8/Storage | Entered Factory 10696 | -7/Factory | Evolved 2 slots: Utility x1, Weapon x1 12028 | -7/Factory | Build established: Bothacker-Mutant 12607 | -7/Factory | Repaired Adv. Beam Rifle 12647 | -7/Factory | Build established: Bothacker-Skirmisher 13014 | -7/Factory | Repaired Titanium Leg 13128 | -7/Factory | Identified exit to Lower Caves 13128 | -7/Factory | Discovered exit to Lower Caves (range 11) 13373 | -7/Factory | Repaired Hvy. Deuterium Engine 13590 | -7/Factory | Identified exit to Factory 13590 | -7/Factory | Discovered exit to Factory (range 15) 13807 | -7/Factory | Entered Lower Caves 13807 | -7/Lower Caves | Accompanied by 1 ally 13955 | -7/Lower Caves | Learned Factory terminal intel 14110 | -7/Lower Caves | Build established: Bothacker-Tank 14277 | -7/Lower Caves | Identified exit to Lower Caves 14277 | -7/Lower Caves | Discovered exit to Lower Caves (range 8) 14386 | -7/Lower Caves | Attracted the attention of an 0b10 outpost 14731 | -7/Lower Caves | Entered another Lower Caves area 14731 | -7/Lower Caves | Accompanied by 2 allies 14905 | -7/Lower Caves | Learned Factory terminal intel 15013 | -7/Lower Caves | Learned 4 Factory zone layouts 15046 | -7/Lower Caves | Identified exit to Zion 15046 | -7/Lower Caves | Discovered exit to Zion (range 5) 15274 | -7/Lower Caves | Entered Zion 15274 | -7/Zion | Accompanied by 2 allies 15317 | -7/Zion | Identified exit to Proximity Caves 15317 | -7/Zion | Discovered exit to Proximity Caves (range 11) 15409 | -7/Zion | System corruption cleaned by Quarantine Array 15414 | -7/Zion | RIF detected upon attempting to enter Zion 15414 | -7/Zion | Attacked by Zionites 15414 | -7/Zion | Spotted C6-MX7(B) 15414 | -7/Zion | Spotted 4L-6HI(B) 15426 | -7/Zion | Allies destroyed 4L-6HI(B) 15436 | -7/Zion | Destroyed C6-MX7(B) 15506 | -7/Zion | ME-RLN came to Zion's defense 15732 | -7/Zion | Destroyed Imprinter 15740 | -7/Zion | Extracted access codes from Imprinter's data core 15774 | -7/Zion | Build established: Hacker-Tank 15779 | -7/Zion | Destroyed ME-RLN 16134 | -7/Zion | Learned 8 Factory zone layouts 16643 | -7/Zion | Build established: Scavenger-Mutant 16805 | -7/Zion | Opened final containment barrier to the Deep Caves 16824 | -7/Zion | Identified exit to Deep Caves 16824 | -7/Zion | Discovered exit to Deep Caves (range 3) 16824 | -7/Zion | Saw the warning signs outside the Deep Caves entrance 16828 | -7/Zion | Entered Deep Caves 17047 | -7/Deep Caves | Build established: Scavenger-Tank 17090 | -7/Deep Caves | Z-Facility disabled 17121 | -7/Deep Caves | Core integrity fell below 50% 17180 | -7/Deep Caves | Core integrity fell below 20% 17196 | -7/Deep Caves | Lost 10 parts (4n3u3w) 17196 | -7/Deep Caves | Destroyed by PW-SZH(z) with Zionite Laser-S Last Messages --------------- 16988_ System corrupted: Energy discharge (-125). 17051_ O6-SER(o) is busy at the terminal. 17081_ Relay Coupler [Hunter] destroyed. 17086_ System corrupted: Adv. EMP Blaster rejected. 17086_ Imp. Medium Armor Plating destroyed. 17088_ Mak. Shrapnel Gun destroyed. 17090_ Z-Facility disabled. 17104_ Mak. Shrapnel Gun destroyed. 17109_ MOEHDAGK9 YA0C4I&X/J4EFVZ/ 17118_ Mak. Leg destroyed. 17121_ Imp. Carbon-fiber Leg destroyed. 17131_ System corrupted: Matter fused (-6). 17138_ Barrage Gun destroyed. 17138_ Carbon-fiber Leg destroyed. 17148_ System corrupted: Component data lost. 17155_ Imp. Titanium Leg destroyed. 17157_ Dropped Imp. Cooling System. 17160_ Dropped Lrg. Storage Unit. 17161_ Dropped F-cell Engine. 17165_ Relay Coupler [Sentry] destroyed. Map ----- +----------------------------------------------------+ | | | | | | | | | | | | | | | | | | | | | | | | | | | | | | | | | | | | | | | | | | | | | ?????????????????????????????????????????????????? | | ????????????????????####?????????????????????????? | | ?????????????##??#### #####?????????????????????? | | ????????????## ###; a @ ##????????????????????? | | ????????##### ##???????????????????? | | ????????# a zzaz ##??????????????????? | | ????????## ### ##?????????????????? | | ?????????### ##?## #?????????????????? | | ???????????## ##???## ##????????#???????? | | ????????????## ##?????# ####### #???????? | | ?????????????## #?????## #???????? | | ??????????????## ######## #???????? | | ???????????????####### ## ########???????? | | ???????????????????## #??????????????? | | ????????????###???## ##??????????????? | | ??????????### #???# #???????????????? | | ?????????## ##?## ##??????????????? | | ????????## ### #??????????????? | | ????????# ## #?????????????? | | ????????# ##?####?????????????? | | ????????# # #????????????????? | | ????????## #### #???????????????? | | ?????????#### ## #??# #???????????????? | | ????????????## ### #??# #????????????????? | | ?????????????######?# #??# #?????????????????# | | ????????????????????# #??# #?????????????????# | | ???????????????????## #??# #???????###???????? | | ??????????????????## ##?# #??????## ##???????# | +----------------------------------------------------+ Best States ------------- Heat Dissipation 89 Energy Generation 19 Energy Capacity 500 Matter Stores 300 Matter Capacity 300 Sight Range 22 Terrain Scan Density 10 Armor Coverage 450 Resistance: KI 35 Resistance: TH 35 Resistance: EX 35 Resistance: EM 35 Resistance: I 35 Resistance: S 35 Resistance: P 35 Weapon Shielding 33 Evasion (%) 55 Targeting Accuracy 5 Recoil Reduction 1 Offensive Hacking 20 Relay Coupler Types 36 Relay Coupler Value 2 Item Schematics ----------------- Carbon-fiber Leg | -8/Materials | Scanalyzed Lgt. Nuclear Core | -8/Materials | Scanalyzed Adv. Beam Rifle | -8/Materials | Scanalyzed Imp. Heat Sink | -8/Materials | Scanalyzed Adv. Targeting Computer | -8/Storage | Hacked Robot Schematics ------------------ None Fabricated ------------ Nothing Alien Tech Used ----------------- None Achievements -------------- None Challenges ------------ None Game ------ Seed TrapBlastRedistributor Manual? 0 Play Time 04:28:31 Cumulative 128.0 hours Start 2021.02.25 @ 22:39:03 End 2021.02.26 @ 23:40:04 Sessions 5 Manual Loads 0 Difficulty Explorer Special Mode None Game No. 70 Rogue 68 Adventurer 0 Explorer 2 Win Type - Total 1 Types 1/0/0/0/0/0/0/0/0 Lore% 42 Gallery% 52 Achievement% 39 Wizard Run 0 Options --------- ASCII 1 Keyboard 1 Movement Numpad Keybinds 0 Fullscreen 1 Font 18/SmallcapsGlow Map View 76x50 Tactical HUD 1 Map Filters NONE Filters NONE Steam 1 RUN: 94422385-7b97-4457-b91f-cf54438d5f46